[Event "December 12 Early 2023"]
[Site "https://www.chess.com"]
[Date "2023.12.12"]
[Round "2"]
[White "Adamczyk, Zuzanna"]
[Black "Valle Luis, Leo"]
[Result "0-1"]
[Board "168"]
[TimeControl "180+1"]
[WhiteFideId "1187570"]
[BlackFideId "54577187"]
[WhiteElo "2332"]
[BlackElo "2514"]
[WhiteTeam "POL"]
[BlackTeam "ESP"]
[WhiteClock "0:00:00"]
[BlackClock "0:00:14"]

1. e4 {[%clk 0:02:45]}  c6 {[%clk 0:02:59]} 2. d4 {[%clk 0:02:44]}  d5 {[%clk 0:03:00]} 3. f3 {[%clk 0:02:45]}  e6 {[%clk 0:02:57]} 4. Nc3 {[%clk 0:02:39]}  Nf6 {[%clk 0:02:55]} 5. e5 {[%clk 0:02:33]}  Nfd7 {[%clk 0:02:55]} 6. Nce2 {[%clk 0:02:33]}  c5 {[%clk 0:02:55]} 7. c3 {[%clk 0:02:34]}  Nc6 {[%clk 0:02:55]} 8. f4 {[%clk 0:02:32]}  Qb6 {[%clk 0:02:51]} 9. Nf3 {[%clk 0:02:31]}  Be7 {[%clk 0:02:44]} 10. f5 {[%clk 0:02:17]}  cxd4 {[%clk 0:02:32]} 11. cxd4 {[%clk 0:02:13]}  exf5 {[%clk 0:02:28]} 12. Nf4 {[%clk 0:02:06]}  Bb4+ {[%clk 0:02:27]} 13. Bd2 {[%clk 0:02:05]}  Ne7 {[%clk 0:02:27]} 14. a3 {[%clk 0:01:51]}  Bxd2+ {[%clk 0:02:26]} 15. Qxd2 {[%clk 0:01:52]}  Nf8 {[%clk 0:02:20]} 16. a4 {[%clk 0:01:18]}  a6 {[%clk 0:02:08]} 17. a5 {[%clk 0:01:15]}  Qd8 {[%clk 0:02:08]} 18. Bd3 {[%clk 0:01:12]}  Ne6 {[%clk 0:02:07]} 19. O-O {[%clk 0:01:10]}  Nxf4 {[%clk 0:01:50]} 20. Qxf4 {[%clk 0:01:10]}  Be6 {[%clk 0:01:51]} 21. Rfc1 {[%clk 0:00:46]}  h6 {[%clk 0:01:45]} 22. h4 {[%clk 0:00:42]}  O-O {[%clk 0:01:39]} 23. Ra3 {[%clk 0:00:42]}  Rc8 {[%clk 0:01:35]} 24. Rxc8 {[%clk 0:00:31]}  Bxc8 {[%clk 0:01:29]} 25. h5 {[%clk 0:00:32]}  Qc7 {[%clk 0:01:26]} 26. Nh4 {[%clk 0:00:31]}  b6 {[%clk 0:01:00]} 27. Bb1 {[%clk 0:00:30]}  bxa5 {[%clk 0:00:58]} 28. Rg3 {[%clk 0:00:30]}  Kh8 {[%clk 0:00:52]} 29. Bxf5 {[%clk 0:00:26]}  Nxf5 {[%clk 0:00:43]} 30. Nxf5 {[%clk 0:00:27]}  Bxf5 {[%clk 0:00:37]} 31. Qxf5 {[%clk 0:00:28]}  Qc1+ {[%clk 0:00:37]} 32. Kh2 {[%clk 0:00:28]}  Qd1 {[%clk 0:00:19]} 33. e6 {[%clk 0:00:16]}  Qxd4 {[%clk 0:00:18]} 34. exf7 {[%clk 0:00:12]}  Qh4+ {[%clk 0:00:18]} 35. Rh3 {[%clk 0:00:13]}  Qe7 {[%clk 0:00:18]} 36. Rf3 {[%clk 0:00:12]}  Qh4+ {[%clk 0:00:18]} 37. Rh3 {[%clk 0:00:12]}  Qd8 {[%clk 0:00:11]} 38. Rg3 {[%clk 0:00:11]}  Qc7 {[%clk 0:00:11]} 39. Kh3 {[%clk 0:00:10]}  Qxf7 {[%clk 0:00:10]} 40. Qxf7 {[%clk 0:00:09]}  Rxf7 {[%clk 0:00:11]} 41. Ra3 {[%clk 0:00:09]}  Rf5 {[%clk 0:00:11]} 42. g4 {[%clk 0:00:07]}  Re5 {[%clk 0:00:09]} 43. Rxa5 {[%clk 0:00:06]}  Re3+ {[%clk 0:00:10]} 44. Kh4 {[%clk 0:00:06]}  d4 {[%clk 0:00:11]} 45. Rxa6 {[%clk 0:00:05]}  Rb3 {[%clk 0:00:11]} 46. Rd6 {[%clk 0:00:05]}  d3 {[%clk 0:00:11]} 47. g5 {[%clk 0:00:04]}  hxg5+ {[%clk 0:00:07]} 48. Kxg5 {[%clk 0:00:05]}  Kg8 {[%clk 0:00:08]} 49. Kg6 {[%clk 0:00:05]}  Kf8 {[%clk 0:00:08]} 50. Rd8+ {[%clk 0:00:03]}  Ke7 {[%clk 0:00:09]} 51. Rd4 {[%clk 0:00:03]}  Rb5 {[%clk 0:00:09]} 52. Kxg7 {[%clk 0:00:02]}  Rxh5 {[%clk 0:00:09]} 53. Rxd3 {[%clk 0:00:03]}  Rb5 {[%clk 0:00:10]} 54. b3 {[%clk 0:00:03]}  Ke6 {[%clk 0:00:10]} 55. Kg6 {[%clk 0:00:03]}  Ke5 {[%clk 0:00:10]} 56. Kg5 {[%clk 0:00:03]}  Ke4+ {[%clk 0:00:11]} 57. Kf6 {[%clk 0:00:01]}  Kxd3 {[%clk 0:00:11]} 58. Ke6 {[%clk 0:00:01]}  Rxb3 {[%clk 0:00:12]} 59. Kd5 {[%clk 0:00:02]}  Rc3 {[%clk 0:00:13]} 60. Ke5 {[%clk 0:00:00]}  Rc4 {[%clk 0:00:14]} 0-1

[Event "December 12 Early 2023"]
[Site "https://www.chess.com"]
[Date "2023.12.12"]
[Round "2"]
[White "Manukyan, Artyom"]
[Black "De Arruda, Leandro Formes"]
[Result "1-0"]
[Board "170"]
[TimeControl "180+1"]
[WhiteFideId "13305786"]
[BlackFideId "22722009"]
[WhiteElo "2513"]
[BlackElo "2328"]
[WhiteTeam "ARM"]
[BlackTeam "BRA"]
[WhiteClock "0:01:52"]
[BlackClock "0:00:52"]

1. e4 {[%clk 0:03:00]}  e6 {[%clk 0:03:00]} 2. d4 {[%clk 0:03:00]}  d5 {[%clk 0:03:00]} 3. Bd3 {[%clk 0:03:01]}  dxe4 {[%clk 0:03:01]} 4. Bxe4 {[%clk 0:03:02]}  Nd7 {[%clk 0:03:01]} 5. Bf3 {[%clk 0:03:02]}  Ngf6 {[%clk 0:03:02]} 6. Ne2 {[%clk 0:03:02]}  Be7 {[%clk 0:03:02]} 7. O-O {[%clk 0:03:03]}  O-O {[%clk 0:03:03]} 8. c4 {[%clk 0:03:04]}  c5 {[%clk 0:03:03]} 9. Nbc3 {[%clk 0:03:04]}  cxd4 {[%clk 0:03:03]} 10. Qxd4 {[%clk 0:03:05]}  a6 {[%clk 0:03:00]} 11. Bg5 {[%clk 0:03:02]}  Qa5 {[%clk 0:02:59]} 12. Qh4 {[%clk 0:02:59]}  Qb4 {[%clk 0:02:54]} 13. Ne4 {[%clk 0:02:54]}  Qxb2 {[%clk 0:02:47]} 14. Rad1 {[%clk 0:02:50]}  Qe5 {[%clk 0:02:32]} 15. Rfe1 {[%clk 0:02:29]}  h6 {[%clk 0:02:22]} 16. Nxf6+ {[%clk 0:02:24]}  Nxf6 {[%clk 0:02:23]} 17. Bf4 {[%clk 0:02:23]}  Qf5 {[%clk 0:02:10]} 18. Ng3 {[%clk 0:02:20]}  Qg6 {[%clk 0:02:08]} 19. Bd6 {[%clk 0:02:14]}  Bxd6 {[%clk 0:02:00]} 20. Rxd6 {[%clk 0:02:14]}  Qg5 {[%clk 0:01:35]} 21. Qd4 {[%clk 0:02:05]}  h5 {[%clk 0:01:21]} 22. h4 {[%clk 0:02:03]}  Qa5 {[%clk 0:01:19]} 23. Re5 {[%clk 0:02:00]}  Qxa2 {[%clk 0:01:15]} 24. Rg5 {[%clk 0:01:57]}  Qb1+ {[%clk 0:01:11]} 25. Kh2 {[%clk 0:01:56]}  Bd7 {[%clk 0:01:05]} 26. Qxf6 {[%clk 0:01:54]}  g6 {[%clk 0:00:52]} 27. Nxh5 {[%clk 0:01:52]} 1-0

[Event "December 12 Early 2023"]
[Site "https://www.chess.com"]
[Date "2023.12.12"]
[Round "2"]
[White "Andrews, Todd"]
[Black "IranianCheetah"]
[Result "1/2-1/2"]
[Board "172"]
[TimeControl "180+1"]
[WhiteFideId "2012456"]
[WhiteElo "2513"]
[BlackElo "2320"]
[WhiteTeam "USA"]
[WhiteClock "0:00:13"]
[BlackClock "0:00:05"]

1. d4 {[%clk 0:03:00]}  d5 {[%clk 0:03:00]} 2. c4 {[%clk 0:03:00]}  c6 {[%clk 0:03:00]} 3. Nf3 {[%clk 0:03:00]}  Nf6 {[%clk 0:03:00]} 4. e3 {[%clk 0:03:00]}  Bf5 {[%clk 0:02:55]} 5. Nc3 {[%clk 0:02:59]}  e6 {[%clk 0:02:55]} 6. Nh4 {[%clk 0:03:00]}  Bg6 {[%clk 0:02:54]} 7. Qb3 {[%clk 0:02:57]}  Qb6 {[%clk 0:02:53]} 8. Nxg6 {[%clk 0:02:52]}  hxg6 {[%clk 0:02:53]} 9. Bd2 {[%clk 0:02:45]}  Bb4 {[%clk 0:02:49]} 10. Bd3 {[%clk 0:02:41]}  Bxc3 {[%clk 0:02:47]} 11. Bxc3 {[%clk 0:02:40]}  Qxb3 {[%clk 0:02:44]} 12. axb3 {[%clk 0:02:41]}  Nbd7 {[%clk 0:02:44]} 13. f3 {[%clk 0:02:38]}  O-O {[%clk 0:02:38]} 14. e4 {[%clk 0:02:23]}  dxe4 {[%clk 0:02:20]} 15. fxe4 {[%clk 0:02:24]}  e5 {[%clk 0:02:20]} 16. dxe5 {[%clk 0:02:03]}  Ng4 {[%clk 0:02:20]} 17. Be2 {[%clk 0:01:52]}  Ngxe5 {[%clk 0:02:06]} 18. O-O-O {[%clk 0:01:51]}  Rfe8 {[%clk 0:02:00]} 19. h4 {[%clk 0:01:48]}  Nc5 {[%clk 0:01:50]} 20. Kc2 {[%clk 0:01:25]}  Nxe4 {[%clk 0:01:48]} 21. Bxe5 {[%clk 0:01:17]}  Rxe5 {[%clk 0:01:47]} 22. Rd7 {[%clk 0:01:05]}  Ng3 {[%clk 0:01:44]} 23. Rhd1 {[%clk 0:01:03]}  Rxe2+ {[%clk 0:01:43]} 24. Kc3 {[%clk 0:01:04]}  b5 {[%clk 0:01:34]} 25. Rc7 {[%clk 0:01:00]}  Re3+ {[%clk 0:01:16]} 26. Kb4 {[%clk 0:00:58]}  bxc4 {[%clk 0:01:15]} 27. bxc4 {[%clk 0:00:58]}  Rb8+ {[%clk 0:01:11]} 28. Kc5 {[%clk 0:00:57]}  Rxb2 {[%clk 0:01:11]} 29. Rd8+ {[%clk 0:00:55]}  Kh7 {[%clk 0:01:09]} 30. Rxf7 {[%clk 0:00:55]}  Re5+ {[%clk 0:00:54]} 31. Kxc6 {[%clk 0:00:53]}  Rb6+ {[%clk 0:00:52]} 32. Kc7 {[%clk 0:00:53]}  Rc5+ {[%clk 0:00:52]} 33. Kd7 {[%clk 0:00:50]}  Rb7+ {[%clk 0:00:47]} 34. Kd6 {[%clk 0:00:46]}  Ne4+ {[%clk 0:00:44]} 35. Ke6 {[%clk 0:00:46]}  Rxf7 {[%clk 0:00:24]} 36. Kxf7 {[%clk 0:00:47]}  Rxc4 {[%clk 0:00:19]} 37. Rd7 {[%clk 0:00:44]}  Ng3 {[%clk 0:00:11]} 38. Rxa7 {[%clk 0:00:41]}  Rxh4 {[%clk 0:00:11]} 39. Kf8 {[%clk 0:00:42]}  Rf4+ {[%clk 0:00:11]} 40. Ke7 {[%clk 0:00:39]}  Nf5+ {[%clk 0:00:10]} 41. Ke6 {[%clk 0:00:39]}  Rg4 {[%clk 0:00:10]} 42. Ra2 {[%clk 0:00:37]}  Ne3 {[%clk 0:00:08]} 43. Re2 {[%clk 0:00:34]}  Nxg2 {[%clk 0:00:08]} 44. Kf7 {[%clk 0:00:33]}  Rf4+ {[%clk 0:00:07]} 45. Ke7 {[%clk 0:00:33]}  Nh4 {[%clk 0:00:07]} 46. Rh2 {[%clk 0:00:32]}  g5 {[%clk 0:00:07]} 47. Ke6 {[%clk 0:00:32]}  Kh6 {[%clk 0:00:07]} 48. Ke5 {[%clk 0:00:33]}  Kh5 {[%clk 0:00:08]} 49. Ra2 {[%clk 0:00:31]}  Rf6 {[%clk 0:00:05]} 50. Ra7 {[%clk 0:00:30]}  g6 {[%clk 0:00:04]} 51. Rh7+ {[%clk 0:00:29]}  Kg4 {[%clk 0:00:04]} 52. Kxf6 {[%clk 0:00:30]}  Nf3 {[%clk 0:00:03]} 53. Kxg6 {[%clk 0:00:26]}  Kf4 {[%clk 0:00:03]} 54. Rf7+ {[%clk 0:00:26]}  Kg3 {[%clk 0:00:03]} 55. Kh5 {[%clk 0:00:26]}  g4 {[%clk 0:00:03]} 56. Rg7 {[%clk 0:00:26]}  Nh2 {[%clk 0:00:03]} 57. Rg8 {[%clk 0:00:23]}  Kh3 {[%clk 0:00:03]} 58. Ra8 {[%clk 0:00:21]}  g3 {[%clk 0:00:03]} 59. Ra3 {[%clk 0:00:22]}  Nf1 {[%clk 0:00:02]} 60. Kg5 {[%clk 0:00:21]}  Kh2 {[%clk 0:00:03]} 61. Ra8 {[%clk 0:00:18]}  g2 {[%clk 0:00:03]} 62. Rh8+ {[%clk 0:00:18]}  Kg1 {[%clk 0:00:04]} 63. Kf4 {[%clk 0:00:17]}  Kf2 {[%clk 0:00:05]} 64. Rg8 {[%clk 0:00:16]}  Nd2 {[%clk 0:00:04]} 65. Rg7 {[%clk 0:00:14]}  Nf3 {[%clk 0:00:05]} 66. Rxg2+ {[%clk 0:00:13]}  Kxg2 {[%clk 0:00:05]} 1/2-1/2

[Event "December 12 Early 2023"]
[Site "https://www.chess.com"]
[Date "2023.12.12"]
[Round "2"]
[White "Silvestre, Christian"]
[Black "Tulchynskyi, Feliks"]
[Result "0-1"]
[Board "176"]
[TimeControl "180+1"]
[WhiteFideId "30956269"]
[BlackFideId "34127895"]
[WhiteElo "2313"]
[BlackElo "2505"]
[WhiteTeam "USA"]
[BlackTeam "UKR"]
[WhiteClock "0:00:07"]
[BlackClock "0:00:23"]

1. e4 {[%clk 0:03:00]}  e6 {[%clk 0:02:56]} 2. Qe2 {[%clk 0:02:57]}  d5 {[%clk 0:02:57]} 3. exd5 {[%clk 0:02:56]}  Qxd5 {[%clk 0:02:57]} 4. Nc3 {[%clk 0:02:56]}  Qa5 {[%clk 0:02:57]} 5. g3 {[%clk 0:02:55]}  Nf6 {[%clk 0:02:56]} 6. Bg2 {[%clk 0:02:54]}  Be7 {[%clk 0:02:55]} 7. Nf3 {[%clk 0:02:55]}  O-O {[%clk 0:02:55]} 8. O-O {[%clk 0:02:56]}  Nc6 {[%clk 0:02:55]} 9. d3 {[%clk 0:02:50]}  Rd8 {[%clk 0:02:54]} 10. Bd2 {[%clk 0:02:50]}  Qh5 {[%clk 0:02:53]} 11. Rae1 {[%clk 0:02:38]}  Bd7 {[%clk 0:02:49]} 12. Ne5 {[%clk 0:02:36]}  Qxe2 {[%clk 0:02:44]} 13. Rxe2 {[%clk 0:02:34]}  Nxe5 {[%clk 0:02:43]} 14. Rxe5 {[%clk 0:02:33]}  c6 {[%clk 0:02:43]} 15. Bf3 {[%clk 0:02:20]}  Nd5 {[%clk 0:02:42]} 16. Re2 {[%clk 0:01:25]}  Bf6 {[%clk 0:02:36]} 17. Nd1 {[%clk 0:01:13]}  a5 {[%clk 0:02:29]} 18. c3 {[%clk 0:01:09]}  a4 {[%clk 0:02:27]} 19. d4 {[%clk 0:01:07]}  b6 {[%clk 0:01:59]} 20. Ne3 {[%clk 0:01:05]}  Bc8 {[%clk 0:01:58]} 21. c4 {[%clk 0:00:54]}  Ne7 {[%clk 0:01:50]} 22. Bb4 {[%clk 0:00:49]}  Rxd4 {[%clk 0:01:39]} 23. Ng4 {[%clk 0:00:27]}  Ng6 {[%clk 0:01:24]} 24. Nxf6+ {[%clk 0:00:19]}  gxf6 {[%clk 0:01:24]} 25. Bxc6 {[%clk 0:00:20]}  Ra7 {[%clk 0:01:24]} 26. b3 {[%clk 0:00:19]}  axb3 {[%clk 0:01:19]} 27. axb3 {[%clk 0:00:20]}  Ne5 {[%clk 0:01:17]} 28. Bg2 {[%clk 0:00:18]}  Rd3 {[%clk 0:01:16]} 29. f4 {[%clk 0:00:17]}  Ng4 {[%clk 0:01:13]} 30. Rd2 {[%clk 0:00:17]}  Rad7 {[%clk 0:01:08]} 31. Rxd3 {[%clk 0:00:16]}  Rxd3 {[%clk 0:01:08]} 32. Ra1 {[%clk 0:00:16]}  Rxb3 {[%clk 0:01:05]} 33. Be7 {[%clk 0:00:15]}  Kg7 {[%clk 0:01:02]} 34. h3 {[%clk 0:00:14]}  Ne3 {[%clk 0:00:53]} 35. Bc6 {[%clk 0:00:14]}  Nf5 {[%clk 0:00:51]} 36. Bd8 {[%clk 0:00:11]}  Rxg3+ {[%clk 0:00:48]} 37. Kf2 {[%clk 0:00:10]}  e5 {[%clk 0:00:35]} 38. Ra8 {[%clk 0:00:10]}  Be6 {[%clk 0:00:34]} 39. fxe5 {[%clk 0:00:06]}  fxe5 {[%clk 0:00:33]} 40. Bd5 {[%clk 0:00:06]}  Bxd5 {[%clk 0:00:29]} 41. cxd5 {[%clk 0:00:07]}  Rd3 {[%clk 0:00:30]} 42. Bxb6 {[%clk 0:00:07]}  Rxd5 {[%clk 0:00:30]} 43. Bc7 {[%clk 0:00:07]}  f6 {[%clk 0:00:29]} 44. Rd8 {[%clk 0:00:04]}  Rc5 {[%clk 0:00:25]} 45. Rd7+ {[%clk 0:00:04]}  Kg6 {[%clk 0:00:25]} 46. Bd8 {[%clk 0:00:05]}  Rc2+ {[%clk 0:00:24]} 47. Kf3 {[%clk 0:00:06]}  Rc3+ {[%clk 0:00:24]} 48. Kg4 {[%clk 0:00:07]}  h5# {[%clk 0:00:23]} 0-1

[Event "December 12 Early 2023"]
[Site "https://www.chess.com"]
[Date "2023.12.12"]
[Round "2"]
[White "Storn, Justin"]
[Black "Kraiouchkine, Nikita"]
[Result "1-0"]
[Board "178"]
[TimeControl "180+1"]
[WhiteFideId "30922720"]
[BlackFideId "2607140"]
[WhiteElo "2307"]
[BlackElo "2504"]
[WhiteTeam "USA"]
[BlackTeam "CAN"]
[WhiteClock "0:00:03"]
[BlackClock "0:00:03"]

1. Nf3 {[%clk 0:03:00]}  d5 {[%clk 0:02:57]} 2. g3 {[%clk 0:03:01]}  Nf6 {[%clk 0:02:54]} 3. Bg2 {[%clk 0:03:00]}  c6 {[%clk 0:02:53]} 4. O-O {[%clk 0:03:00]}  Bg4 {[%clk 0:02:53]} 5. Ne5 {[%clk 0:03:00]}  Bf5 {[%clk 0:02:54]} 6. d4 {[%clk 0:02:59]}  h6 {[%clk 0:02:53]} 7. c4 {[%clk 0:02:58]}  e6 {[%clk 0:02:54]} 8. Nc3 {[%clk 0:02:54]}  Nbd7 {[%clk 0:02:53]} 9. Re1 {[%clk 0:02:41]}  Nxe5 {[%clk 0:02:51]} 10. dxe5 {[%clk 0:02:42]}  Nd7 {[%clk 0:02:52]} 11. f4 {[%clk 0:02:42]}  Bc5+ {[%clk 0:02:41]} 12. Kh1 {[%clk 0:02:41]}  dxc4 {[%clk 0:02:36]} 13. Ne4 {[%clk 0:02:14]}  Bxe4 {[%clk 0:02:30]} 14. Bxe4 {[%clk 0:02:15]}  O-O {[%clk 0:02:27]} 15. Qc2 {[%clk 0:02:11]}  Nb6 {[%clk 0:02:22]} 16. Bd2 {[%clk 0:01:59]}  f6 {[%clk 0:02:21]} 17. exf6 {[%clk 0:01:47]}  Qxf6 {[%clk 0:02:22]} 18. Bc3 {[%clk 0:01:46]}  Bd4 {[%clk 0:02:19]} 19. Bxd4 {[%clk 0:01:29]}  Qxd4 {[%clk 0:02:20]} 20. Rad1 {[%clk 0:01:29]}  Qe3 {[%clk 0:02:11]} 21. Rd6 {[%clk 0:01:06]}  Rad8 {[%clk 0:01:35]} 22. Rxe6 {[%clk 0:01:05]}  Qd2 {[%clk 0:01:35]} 23. Qc3 {[%clk 0:00:38]}  Qxc3 {[%clk 0:00:29]} 24. bxc3 {[%clk 0:00:39]}  Na4 {[%clk 0:00:26]} 25. Rc1 {[%clk 0:00:11]}  Rd2 {[%clk 0:00:16]} 26. Bg6 {[%clk 0:00:11]}  Rxa2 {[%clk 0:00:12]} 27. Rd1 {[%clk 0:00:11]}  Nc5 {[%clk 0:00:06]} 28. Re7 {[%clk 0:00:10]}  a5 {[%clk 0:00:06]} 29. Re5 {[%clk 0:00:06]}  b6 {[%clk 0:00:05]} 30. Rd6 {[%clk 0:00:05]}  a4 {[%clk 0:00:04]} 31. Rxc6 {[%clk 0:00:05]}  Rb2 {[%clk 0:00:04]} 32. Rc7 {[%clk 0:00:04]}  Na6 {[%clk 0:00:02]} 33. Ra7 {[%clk 0:00:04]}  Nb8 {[%clk 0:00:01]} 34. Ree7 {[%clk 0:00:03]}  Rd8 {[%clk 0:00:02]} 35. Rxg7+ {[%clk 0:00:03]}  Kf8 {[%clk 0:00:02]} 36. Raf7+ {[%clk 0:00:02]}  Ke8 {[%clk 0:00:03]} 37. Rg8# {[%clk 0:00:03]} 1-0

[Event "December 12 Early 2023"]
[Site "https://www.chess.com"]
[Date "2023.12.12"]
[Round "2"]
[White "Herman, Matthew"]
[Black "Shapiro, Daniel"]
[Result "1-0"]
[Board "179"]
[TimeControl "180+1"]
[WhiteFideId "2028964"]
[BlackFideId "2001780"]
[WhiteElo "2504"]
[BlackElo "2307"]
[WhiteTeam "USA"]
[BlackTeam "USA"]
[WhiteClock "0:00:08"]
[BlackClock "0:00:00"]

1. e4 {[%clk 0:03:00]}  c5 {[%clk 0:02:59]} 2. Nf3 {[%clk 0:03:01]}  Nc6 {[%clk 0:02:58]} 3. Bb5 {[%clk 0:03:00]}  e6 {[%clk 0:02:56]} 4. c3 {[%clk 0:03:00]}  d5 {[%clk 0:02:52]} 5. d3 {[%clk 0:02:37]}  Bd6 {[%clk 0:02:33]} 6. O-O {[%clk 0:02:33]}  Qc7 {[%clk 0:02:24]} 7. Re1 {[%clk 0:02:30]}  Ne7 {[%clk 0:02:22]} 8. e5 {[%clk 0:02:28]}  O-O {[%clk 0:02:01]} 9. exd6 {[%clk 0:02:27]}  Qxd6 {[%clk 0:02:02]} 10. d4 {[%clk 0:02:20]}  c4 {[%clk 0:02:02]} 11. Bg5 {[%clk 0:02:01]}  f6 {[%clk 0:01:57]} 12. Bh4 {[%clk 0:02:01]}  Nf5 {[%clk 0:01:56]} 13. Bg3 {[%clk 0:01:59]}  Nxg3 {[%clk 0:01:55]} 14. hxg3 {[%clk 0:02:00]}  Bd7 {[%clk 0:01:55]} 15. Bxc6 {[%clk 0:01:55]}  Bxc6 {[%clk 0:01:52]} 16. Re3 {[%clk 0:01:39]}  Rae8 {[%clk 0:01:45]} 17. Qe2 {[%clk 0:01:40]}  b5 {[%clk 0:01:35]} 18. a3 {[%clk 0:01:33]}  a5 {[%clk 0:01:35]} 19. Nbd2 {[%clk 0:01:32]}  Bd7 {[%clk 0:01:30]} 20. Re1 {[%clk 0:01:20]}  Rb8 {[%clk 0:01:30]} 21. Nh4 {[%clk 0:01:11]}  b4 {[%clk 0:01:27]} 22. axb4 {[%clk 0:01:10]}  axb4 {[%clk 0:01:28]} 23. f4 {[%clk 0:01:08]}  bxc3 {[%clk 0:01:25]} 24. bxc3 {[%clk 0:01:09]}  Rb2 {[%clk 0:01:24]} 25. Nhf3 {[%clk 0:01:01]}  Ra8 {[%clk 0:01:24]} 26. Rxe6 {[%clk 0:00:31]}  Bxe6 {[%clk 0:01:22]} 27. Qxe6+ {[%clk 0:00:32]}  Qxe6 {[%clk 0:01:22]} 28. Rxe6 {[%clk 0:00:33]}  Raa2 {[%clk 0:01:19]} 29. Rd6 {[%clk 0:00:33]}  Rxd2 {[%clk 0:01:17]} 30. Nxd2 {[%clk 0:00:33]}  Rxd2 {[%clk 0:01:17]} 31. Rxd5 {[%clk 0:00:33]}  Rd3 {[%clk 0:01:18]} 32. Kf2 {[%clk 0:00:28]}  Rxc3 {[%clk 0:01:18]} 33. Rc5 {[%clk 0:00:29]}  Rc2+ {[%clk 0:01:17]} 34. Kf3 {[%clk 0:00:29]}  g6 {[%clk 0:01:08]} 35. g4 {[%clk 0:00:29]}  Kf7 {[%clk 0:01:02]} 36. f5 {[%clk 0:00:27]}  Rc3+ {[%clk 0:00:55]} 37. Kf2 {[%clk 0:00:24]}  Rc2+ {[%clk 0:00:54]} 38. Kf3 {[%clk 0:00:24]}  Rc3+ {[%clk 0:00:54]} 39. Ke4 {[%clk 0:00:23]}  Rg3 {[%clk 0:00:40]} 40. Kf4 {[%clk 0:00:15]}  Rxg2 {[%clk 0:00:38]} 41. Rxc4 {[%clk 0:00:16]}  g5+ {[%clk 0:00:27]} 42. Kf3 {[%clk 0:00:15]}  Rd2 {[%clk 0:00:19]} 43. Rc7+ {[%clk 0:00:15]}  Kf8 {[%clk 0:00:16]} 44. Ke4 {[%clk 0:00:15]}  Rg2 {[%clk 0:00:16]} 45. Kd5 {[%clk 0:00:11]}  Re2 {[%clk 0:00:12]} 46. Rxh7 {[%clk 0:00:10]}  Ke8 {[%clk 0:00:11]} 47. Ra7 {[%clk 0:00:09]}  Kf8 {[%clk 0:00:06]} 48. Ra6 {[%clk 0:00:08]}  Kf7 {[%clk 0:00:05]} 49. Ra7+ {[%clk 0:00:07]}  Kf8 {[%clk 0:00:06]} 50. Ra6 {[%clk 0:00:08]}  Kf7 {[%clk 0:00:06]} 51. Re6 {[%clk 0:00:08]}  Rg2 {[%clk 0:00:05]} 52. Re4 {[%clk 0:00:09]}  Ra2 {[%clk 0:00:04]} 53. Kc6 {[%clk 0:00:08]}  Ra6+ {[%clk 0:00:04]} 54. Kb5 {[%clk 0:00:08]}  Ra1 {[%clk 0:00:03]} 55. d5 {[%clk 0:00:08]}  Rd1 {[%clk 0:00:03]} 56. Kc6 {[%clk 0:00:09]}  Rc1+ {[%clk 0:00:03]} 57. Kd6 {[%clk 0:00:09]}  Kf8 {[%clk 0:00:00]} 58. Kd7 {[%clk 0:00:08]} 1-0

[Event "December 12 Early 2023"]
[Site "https://www.chess.com"]
[Date "2023.12.12"]
[Round "2"]
[White "Schut, Han"]
[Black "Chernomordik, Pavel"]
[Result "0-1"]
[Board "180"]
[TimeControl "180+1"]
[WhiteFideId "1005561"]
[BlackFideId "2804530"]
[WhiteElo "2305"]
[BlackElo "2504"]
[WhiteTeam "NED"]
[BlackTeam "ISR"]
[WhiteClock "0:00:07"]
[BlackClock "0:00:38"]

1. e4 {[%clk 0:03:00]}  g6 {[%clk 0:02:59]} 2. d4 {[%clk 0:03:00]}  Bg7 {[%clk 0:02:59]} 3. Nc3 {[%clk 0:03:01]}  d6 {[%clk 0:02:58]} 4. f4 {[%clk 0:03:01]}  a6 {[%clk 0:02:57]} 5. Nf3 {[%clk 0:03:02]}  b5 {[%clk 0:02:57]} 6. Bd3 {[%clk 0:03:00]}  Nd7 {[%clk 0:02:57]} 7. e5 {[%clk 0:03:00]}  c5 {[%clk 0:02:56]} 8. Be4 {[%clk 0:02:43]}  Rb8 {[%clk 0:02:55]} 9. dxc5 {[%clk 0:02:33]}  Nxc5 {[%clk 0:02:50]} 10. Bc6+ {[%clk 0:02:23]}  Bd7 {[%clk 0:02:49]} 11. Bxd7+ {[%clk 0:02:20]}  Qxd7 {[%clk 0:02:49]} 12. Be3 {[%clk 0:02:08]}  b4 {[%clk 0:02:42]} 13. Ne2 {[%clk 0:01:47]}  Rc8 {[%clk 0:02:31]} 14. Qd4 {[%clk 0:01:21]}  Ne6 {[%clk 0:02:18]} 15. Qxb4 {[%clk 0:01:17]}  Rxc2 {[%clk 0:02:13]} 16. Ned4 {[%clk 0:01:13]}  Nxd4 {[%clk 0:01:59]} 17. Nxd4 {[%clk 0:01:07]}  Rc8 {[%clk 0:01:47]} 18. e6 {[%clk 0:00:44]}  fxe6 {[%clk 0:01:45]} 19. Qb3 {[%clk 0:00:44]}  d5 {[%clk 0:01:36]} 20. O-O {[%clk 0:00:39]}  Nf6 {[%clk 0:01:32]} 21. Rac1 {[%clk 0:00:37]}  O-O {[%clk 0:01:30]} 22. Qb6 {[%clk 0:00:33]}  Ng4 {[%clk 0:01:21]} 23. Nxe6 {[%clk 0:00:23]}  Rxc1 {[%clk 0:00:43]} 24. Rxc1 {[%clk 0:00:20]}  Rf6 {[%clk 0:00:43]} 25. Qb8+ {[%clk 0:00:14]}  Bf8 {[%clk 0:00:42]} 26. Nxf8 {[%clk 0:00:10]}  Rxf8 {[%clk 0:00:41]} 27. Bd4 {[%clk 0:00:07]}  Rxb8 {[%clk 0:00:38]} 0-1